[Event "*** Titled Tuesday Blitz"]
[Site "Chess.com"]
[Date "2020.03.03"]
[Round "8"]
[White "HomayoonTofighi"]
[Black "platy3"]
[Result "1/2-1/2"]
[WhiteElo "2647"]
[BlackElo "2865"]
[TimeControl "180+1"]
[EndTime "14:35:13 PST"]
[Termination "Game drawn - insufficient material"]

1. e4 {[%clk 0:03:00.7]} 1... e5 {[%clk 0:02:58]} 2. Nf3 {[%clk 0:03:00.1]} 2...
Nc6 {[%clk 0:02:56.1]} 3. Bc4 {[%clk 0:03:00.6]} 3... Bc5 {[%clk 0:02:55.3]} 4.
c3 {[%clk 0:03:00.8]} 4... Nf6 {[%clk 0:02:55.4]} 5. d4 {[%clk 0:02:59.5]} 5...
exd4 {[%clk 0:02:54.9]} 6. cxd4 {[%clk 0:03:00.4]} 6... Bb4+ {[%clk 0:02:54.4]}
7. Nc3 {[%clk 0:02:57.5]} 7... Nxe4 {[%clk 0:02:52.1]} 8. O-O {[%clk 0:02:55.4]}
8... Bxc3 {[%clk 0:02:48]} 9. d5 {[%clk 0:02:54.5]} 9... O-O {[%clk 0:02:42.7]}
10. bxc3 {[%clk 0:02:51.2]} 10... Ne7 {[%clk 0:02:41.8]} 11. Re1 {[%clk
0:02:47.6]} 11... Nf6 {[%clk 0:02:39.2]} 12. d6 {[%clk 0:02:44.2]} 12... Nf5
{[%clk 0:02:36.1]} 13. Bf4 {[%clk 0:02:38.6]} 13... Nxd6 {[%clk 0:02:26]} 14.
Bxd6 {[%clk 0:02:36.3]} 14... cxd6 {[%clk 0:02:26.9]} 15. Qxd6 {[%clk
0:02:33.5]} 15... Qb6 {[%clk 0:02:27.5]} 16. Rad1 {[%clk 0:02:25.8]} 16... Qxd6
{[%clk 0:02:26.6]} 17. Rxd6 {[%clk 0:02:26.7]} 17... Re8 {[%clk 0:02:23.6]} 18.
Ne5 {[%clk 0:02:23.9]} 18... Re7 {[%clk 0:02:17.1]} 19. f4 {[%clk 0:02:23.1]}
19... Kf8 {[%clk 0:02:09.7]} 20. Red1 {[%clk 0:02:19.4]} 20... h5 {[%clk
0:01:54.1]} 21. R1d4 {[%clk 0:02:11.4]} 21... b6 {[%clk 0:01:53.4]} 22. a4
{[%clk 0:02:06.3]} 22... Bb7 {[%clk 0:01:46.1]} 23. Bxf7 {[%clk 0:01:57]} 23...
Rxf7 {[%clk 0:01:22.7]} 24. Nxf7 {[%clk 0:01:52.1]} 24... Kxf7 {[%clk
0:01:23.2]} 25. Rxd7+ {[%clk 0:01:51]} 25... Nxd7 {[%clk 0:01:23.9]} 26. Rxd7+
{[%clk 0:01:51.9]} 26... Kf6 {[%clk 0:01:13.9]} 27. Rxb7 {[%clk 0:01:52.8]}
27... Rc8 {[%clk 0:01:14.4]} 28. Rxa7 {[%clk 0:01:52.5]} 28... Rxc3 {[%clk
0:01:14.5]} 29. Ra6 {[%clk 0:01:53]} 29... Kf5 {[%clk 0:01:12.3]} 30. Rxb6
{[%clk 0:01:50]} 30... Kxf4 {[%clk 0:01:12.6]} 31. Rb4+ {[%clk 0:01:47.5]} 31...
Kg5 {[%clk 0:01:05.2]} 32. Rb5+ {[%clk 0:01:41.7]} 32... Kg4 {[%clk 0:01:01.8]}
33. a5 {[%clk 0:01:42.6]} 33... Rc1+ {[%clk 0:01:00.5]} 34. Kf2 {[%clk
0:01:41.7]} 34... Rc2+ {[%clk 0:01:01.4]} 35. Ke3 {[%clk 0:01:35.4]} 35... Rxg2
{[%clk 0:00:59.9]} 36. Rb4+ {[%clk 0:01:33.9]} 36... Kh3 {[%clk 0:00:56.3]} 37.
Ra4 {[%clk 0:01:31.5]} 37... Rb2 {[%clk 0:00:40.8]} 38. a6 {[%clk 0:01:24.9]}
38... Rb8 {[%clk 0:00:40.9]} 39. a7 {[%clk 0:01:24.9]} 39... Ra8 {[%clk
0:00:41.4]} 40. Kf4 {[%clk 0:01:17.6]} 40... Kxh2 {[%clk 0:00:32.1]} 41. Kg5
{[%clk 0:01:14.3]} 41... Kg3 {[%clk 0:00:32]} 42. Kxh5 {[%clk 0:01:10.8]} 42...
Kf3 {[%clk 0:00:32.2]} 43. Kg6 {[%clk 0:01:07.8]} 43... Ke3 {[%clk 0:00:31.6]}
44. Kxg7 {[%clk 0:01:04.9]} 44... Kd3 {[%clk 0:00:32.1]} 45. Kf7 {[%clk
0:00:59.9]} 45... Kc3 {[%clk 0:00:32.4]} 46. Ke7 {[%clk 0:00:56.5]} 46... Kb3
{[%clk 0:00:33]} 47. Ra6 {[%clk 0:00:52.5]} 47... Kb4 {[%clk 0:00:32.8]} 48. Kd7
{[%clk 0:00:48.2]} 48... Kb5 {[%clk 0:00:32.8]} 49. Ra1 {[%clk 0:00:45.7]} 49...
Kb6 {[%clk 0:00:33.1]} 50. Kd6 {[%clk 0:00:43.9]} 50... Rxa7 {[%clk 0:00:30.1]}
51. Rb1+ {[%clk 0:00:43.1]} 51... Ka5 {[%clk 0:00:30.3]} 52. Ra1+ {[%clk
0:00:40.7]} 52... Kb6 {[%clk 0:00:29.9]} 53. Rxa7 {[%clk 0:00:31.8]} 53... Kxa7
{[%clk 0:00:30.8]} 1/2-1/2

[Event "*** Titled Tuesday Blitz"]
[Site "Chess.com"]
[Date "2020.03.03"]
[Round "8"]
[White "Witaliss"]
[Black "vladimirdamjanovic"]
[Result "1/2-1/2"]
[WhiteElo "2462"]
[BlackElo "2633"]
[TimeControl "180+1"]
[EndTime "14:35:14 PST"]
[Termination "Game drawn by repetition"]

1. d4 {[%clk 0:03:00.9]} 1... Nf6 {[%clk 0:02:59.3]} 2. Nf3 {[%clk 0:03:00.7]}
2... c5 {[%clk 0:02:59.4]} 3. d5 {[%clk 0:03:00.2]} 3... d6 {[%clk 0:02:59.9]}
4. c4 {[%clk 0:03:00.4]} 4... b5 {[%clk 0:02:59.9]} 5. cxb5 {[%clk 0:02:59.9]}
5... a6 {[%clk 0:03:00.5]} 6. b6 {[%clk 0:03:00.2]} 6... Nbd7 {[%clk 0:02:59.9]}
7. Nc3 {[%clk 0:03:00]} 7... g6 {[%clk 0:02:59.4]} 8. e4 {[%clk 0:02:59.5]} 8...
Bg7 {[%clk 0:02:59.1]} 9. Be2 {[%clk 0:02:58.5]} 9... O-O {[%clk 0:02:58.6]} 10.
O-O {[%clk 0:02:57.9]} 10... Nxb6 {[%clk 0:02:58.9]} 11. Bg5 {[%clk 0:02:55.5]}
11... a5 {[%clk 0:02:55.2]} 12. Qc2 {[%clk 0:02:50.7]} 12... Ba6 {[%clk
0:02:54.5]} 13. Rfe1 {[%clk 0:02:50.4]} 13... Bxe2 {[%clk 0:02:53.2]} 14. Rxe2
{[%clk 0:02:50.5]} 14... Nfd7 {[%clk 0:02:51.8]} 15. Qd2 {[%clk 0:02:36.4]}
15... Nc4 {[%clk 0:02:43.8]} 16. Qd3 {[%clk 0:02:30.2]} 16... Nde5 {[%clk
0:02:43.2]} 17. Nxe5 {[%clk 0:02:29.5]} 17... Nxe5 {[%clk 0:02:44.1]} 18. Qh3
{[%clk 0:02:26.2]} 18... Rb8 {[%clk 0:02:36.7]} 19. Bh6 {[%clk 0:02:22.8]} 19...
Qc8 {[%clk 0:02:03.6]} 20. Qxc8 {[%clk 0:02:20.1]} 20... Rfxc8 {[%clk
0:02:04.5]} 21. Bxg7 {[%clk 0:02:20.3]} 21... Kxg7 {[%clk 0:02:05.4]} 22. Rd1
{[%clk 0:02:12.1]} 22... c4 {[%clk 0:01:58.1]} 23. Rdd2 {[%clk 0:02:06.3]} 23...
Nd3 {[%clk 0:01:52.3]} 24. g3 {[%clk 0:02:00.5]} 24... Rb4 {[%clk 0:01:48.6]}
25. Rc2 {[%clk 0:01:56.7]} 25... Rcb8 {[%clk 0:01:43.7]} 26. Nd1 {[%clk
0:01:56]} 26... a4 {[%clk 0:01:37.8]} 27. a3 {[%clk 0:01:53.3]} 27... Rb3 {[%clk
0:01:29.4]} 28. Rxc4 {[%clk 0:01:53.1]} 28... Nc5 {[%clk 0:01:19.3]} 29. Nc3
{[%clk 0:01:44.7]} 29... Rxb2 {[%clk 0:01:10.4]} 30. Rxb2 {[%clk 0:01:44.4]}
30... Rxb2 {[%clk 0:01:11.3]} 31. Nxa4 {[%clk 0:01:44.3]} 31... Rb1+ {[%clk
0:01:03.1]} 32. Kg2 {[%clk 0:01:43.7]} 32... Nd3 {[%clk 0:01:03.7]} 33. Rc3
{[%clk 0:01:36]} 33... Ne5 {[%clk 0:00:51.9]} 34. h3 {[%clk 0:01:32.1]} 34...
Ra1 {[%clk 0:00:50.3]} 35. Nb6 {[%clk 0:01:28.8]} 35... Ra2 {[%clk 0:00:45.3]}
36. Kf1 {[%clk 0:01:23.7]} 36... f5 {[%clk 0:00:44.3]} 37. exf5 {[%clk
0:01:21.5]} 37... gxf5 {[%clk 0:00:44.2]} 38. f4 {[%clk 0:01:18.4]} 38... Ng6
{[%clk 0:00:37.5]} 39. a4 {[%clk 0:01:15.5]} 39... h5 {[%clk 0:00:33.5]} 40. h4
{[%clk 0:01:15]} 40... Nh8 {[%clk 0:00:31.6]} 41. Re3 {[%clk 0:01:11.8]} 41...
Kf6 {[%clk 0:00:27.7]} 42. Re2 {[%clk 0:01:05.8]} 42... Ra3 {[%clk 0:00:26.8]}
43. Kf2 {[%clk 0:01:05.8]} 43... Kf7 {[%clk 0:00:22.3]} 44. Re3 {[%clk
0:01:04.1]} 44... Ra2+ {[%clk 0:00:22.1]} 45. Kf3 {[%clk 0:01:03.8]} 45... Ra1
{[%clk 0:00:17.3]} 46. Rc3 {[%clk 0:00:56.9]} 46... Kf6 {[%clk 0:00:14.1]} 47.
Rc7 {[%clk 0:00:51.5]} 47... Nf7 {[%clk 0:00:13.6]} 48. Nc8 {[%clk 0:00:44.7]}
48... Ra3+ {[%clk 0:00:13.2]} 49. Kg2 {[%clk 0:00:41.8]} 49... Ra2+ {[%clk
0:00:13.4]} 50. Kf3 {[%clk 0:00:37.9]} 50... Nh6 {[%clk 0:00:13.3]} 51. Nxe7
{[%clk 0:00:29.7]} 51... Ng4 {[%clk 0:00:13.2]} 52. Ng8+ {[%clk 0:00:29.3]}
52... Kg6 {[%clk 0:00:11.6]} 53. Ne7+ {[%clk 0:00:28.5]} 53... Kf6 {[%clk
0:00:11.3]} 54. Ng8+ {[%clk 0:00:28.1]} 54... Kg6 {[%clk 0:00:11.6]} 55. Ne7+
{[%clk 0:00:27.7]} 55... Kf6 {[%clk 0:00:11.4]} 1/2-1/2

[Event "*** Titled Tuesday Blitz"]
[Site "Chess.com"]
[Date "2020.03.03"]
[Round "8"]
[White "TheBigBadChessDad"]
[Black "Galiev_Azat"]
[Result "0-1"]
[WhiteElo "2293"]
[BlackElo "2282"]
[TimeControl "180+1"]
[EndTime "14:35:14 PST"]
[Termination "Galiev_Azat won on time"]

1. d4 {[%clk 0:02:51.5]} 1... Nf6 {[%clk 0:02:59.1]} 2. Nf3 {[%clk 0:02:50.6]}
2... e6 {[%clk 0:02:59.1]} 3. Bf4 {[%clk 0:02:50.3]} 3... c5 {[%clk 0:02:44.3]}
4. e3 {[%clk 0:02:50.2]} 4... Qb6 {[%clk 0:02:43.1]} 5. Na3 {[%clk 0:02:44.8]}
5... Nd5 {[%clk 0:02:21.2]} 6. Nc4 {[%clk 0:02:36.9]} 6... Qb4+ {[%clk
0:01:32.9]} 7. c3 {[%clk 0:02:30.6]} 7... Nxc3 {[%clk 0:01:30.6]} 8. bxc3 {[%clk
0:02:28.7]} 8... Qxc3+ {[%clk 0:01:30.8]} 9. Ncd2 {[%clk 0:01:58.6]} 9... Nc6
{[%clk 0:01:19]} 10. Rc1 {[%clk 0:01:53.1]} 10... Qa5 {[%clk 0:01:10]} 11. dxc5
{[%clk 0:01:49.6]} 11... Bxc5 {[%clk 0:01:07]} 12. Bd3 {[%clk 0:01:39.6]} 12...
Nb4 {[%clk 0:01:00.6]} 13. Bb1 {[%clk 0:01:31.7]} 13... Nd5 {[%clk 0:00:59.8]}
14. O-O {[%clk 0:01:27]} 14... Nxf4 {[%clk 0:00:58.9]} 15. Nb3 {[%clk
0:01:20.6]} 15... Qb6 {[%clk 0:00:41.7]} 16. exf4 {[%clk 0:01:12.7]} 16... Be7
{[%clk 0:00:35.3]} 17. Qd4 {[%clk 0:01:08.1]} 17... Qxd4 {[%clk 0:00:30.6]} 18.
Nbxd4 {[%clk 0:01:01.6]} 18... O-O {[%clk 0:00:30.2]} 19. Rfd1 {[%clk
0:00:22.1]} 19... a6 {[%clk 0:00:30.1]} 20. a4 {[%clk 0:00:21.2]} 20... d5
{[%clk 0:00:29.4]} 21. a5 {[%clk 0:00:17.9]} 21... Bd6 {[%clk 0:00:29.4]} 22. g3
{[%clk 0:00:16.7]} 22... Bd7 {[%clk 0:00:29.6]} 23. Bd3 {[%clk 0:00:13.8]} 23...
Ba4 {[%clk 0:00:29.1]} 24. Rd2 {[%clk 0:00:12.8]} 24... Rfc8 {[%clk 0:00:29.6]}
25. Rxc8+ {[%clk 0:00:11.2]} 25... Rxc8 {[%clk 0:00:29.2]} 26. Rb2 {[%clk
0:00:11.7]} 26... Rc7 {[%clk 0:00:25.7]} 27. Kg2 {[%clk 0:00:11.1]} 27... g6
{[%clk 0:00:24.9]} 28. Ne5 {[%clk 0:00:09.9]} 28... Bc5 {[%clk 0:00:19.8]} 29.
Nef3 {[%clk 0:00:08.1]} 29... Kg7 {[%clk 0:00:19.2]} 30. g4 {[%clk 0:00:07.1]}
30... Bd7 {[%clk 0:00:18.1]} 31. g5 {[%clk 0:00:06.8]} 31... Bd6 {[%clk
0:00:18.4]} 32. Ne5 {[%clk 0:00:06.6]} 32... Bc5 {[%clk 0:00:15.8]} 33. Ndf3
{[%clk 0:00:05.3]} 33... f6 {[%clk 0:00:15.5]} 34. gxf6+ {[%clk 0:00:04.4]}
34... Kxf6 {[%clk 0:00:16]} 35. Nxd7+ {[%clk 0:00:04.6]} 35... Rxd7 {[%clk
0:00:16.5]} 36. Ne5 {[%clk 0:00:04.8]} 36... Rc7 {[%clk 0:00:16.7]} 37. Rc2
{[%clk 0:00:05.3]} 37... Bd6 {[%clk 0:00:16.9]} 38. Rxc7 {[%clk 0:00:03.4]}
38... Bxc7 {[%clk 0:00:17.4]} 39. Nd7+ {[%clk 0:00:02.9]} 39... Ke7 {[%clk
0:00:16.8]} 40. Nc5 {[%clk 0:00:03.5]} 40... Bxa5 {[%clk 0:00:14.4]} 41. Nxb7
{[%clk 0:00:03.7]} 41... Bc7 {[%clk 0:00:14.2]} 42. Bxa6 {[%clk 0:00:02]} 42...
Bxf4 {[%clk 0:00:13.8]} 43. Nc5 {[%clk 0:00:01.5]} 43... Kd6 {[%clk 0:00:13.7]}
44. Nd3 {[%clk 0:00:01.5]} 44... Bd2 {[%clk 0:00:12.6]} 45. h3 {[%clk
0:00:01.4]} 45... e5 {[%clk 0:00:13]} 0-1

[Event "*** Titled Tuesday Blitz"]
[Site "Chess.com"]
[Date "2020.03.03"]
[Round "8"]
[White "newauto"]
[Black "PursuitOfHappyness2"]
[Result "1-0"]
[WhiteElo "2037"]
[BlackElo "2407"]
[TimeControl "180+1"]
[EndTime "14:35:15 PST"]
[Termination "newauto won by resignation"]

1. e4 {[%clk 0:03:00]} 1... c5 {[%clk 0:02:58.9]} 2. Nf3 {[%clk 0:02:59.5]} 2...
Nc6 {[%clk 0:02:57.2]} 3. Bb5 {[%clk 0:02:51.4]} 3... e6 {[%clk 0:02:56.2]} 4.
O-O {[%clk 0:02:51]} 4... Nge7 {[%clk 0:02:53.3]} 5. e5 {[%clk 0:02:46.7]} 5...
a6 {[%clk 0:02:46.1]} 6. Be2 {[%clk 0:02:45.7]} 6... d6 {[%clk 0:02:45.2]} 7.
exd6 {[%clk 0:02:45.5]} 7... Qxd6 {[%clk 0:02:46.1]} 8. Re1 {[%clk 0:02:42.8]}
8... g6 {[%clk 0:02:38.9]} 9. c3 {[%clk 0:02:42.5]} 9... Bg7 {[%clk 0:02:38.8]}
10. d3 {[%clk 0:02:33.5]} 10... O-O {[%clk 0:02:36]} 11. Nbd2 {[%clk 0:02:33.6]}
11... b6 {[%clk 0:02:31.5]} 12. Nc4 {[%clk 0:02:26]} 12... Qc7 {[%clk
0:02:31.1]} 13. Bg5 {[%clk 0:02:24.3]} 13... Bb7 {[%clk 0:02:28.3]} 14. Qc2
{[%clk 0:02:20.1]} 14... Nd5 {[%clk 0:02:28.1]} 15. Bf1 {[%clk 0:02:15.1]} 15...
h6 {[%clk 0:02:18.9]} 16. Bh4 {[%clk 0:02:15]} 16... Nde7 {[%clk 0:01:53.2]} 17.
Bg3 {[%clk 0:02:11.9]} 17... Qd8 {[%clk 0:01:51.9]} 18. Nd6 {[%clk 0:02:05.3]}
18... Bc8 {[%clk 0:01:51]} 19. Rad1 {[%clk 0:01:37.3]} 19... Nf5 {[%clk
0:01:40.1]} 20. Nxf5 {[%clk 0:01:24.5]} 20... exf5 {[%clk 0:01:41]} 21. Ne5
{[%clk 0:01:19.9]} 21... Bb7 {[%clk 0:01:37.8]} 22. Qb3 {[%clk 0:00:52.6]} 22...
g5 {[%clk 0:01:09]} 23. Nxc6 {[%clk 0:00:46.2]} 23... Bxc6 {[%clk 0:01:08.7]}
24. Be5 {[%clk 0:00:47]} 24... Bd5 {[%clk 0:00:57.9]} 25. c4 {[%clk 0:00:44.4]}
25... Bxe5 {[%clk 0:00:30.7]} 26. Rxe5 {[%clk 0:00:45.2]} 26... Be6 {[%clk
0:00:26.6]} 27. g3 {[%clk 0:00:35.1]} 27... Qd4 {[%clk 0:00:20.5]} 28. Re2
{[%clk 0:00:25.3]} 28... b5 {[%clk 0:00:17.4]} 29. Bg2 {[%clk 0:00:24.6]} 29...
Rad8 {[%clk 0:00:15.5]} 30. Qc2 {[%clk 0:00:21.2]} 30... bxc4 {[%clk 0:00:15.5]}
31. Red2 {[%clk 0:00:19.3]} 31... f4 {[%clk 0:00:15.7]} 32. dxc4 {[%clk
0:00:18.6]} 32... Qxc4 {[%clk 0:00:14.4]} 33. Qxc4 {[%clk 0:00:18.2]} 33... Rxd2
{[%clk 0:00:14.4]} 34. Qf1 {[%clk 0:00:14.6]} 34... Rxb2 {[%clk 0:00:11.8]} 35.
Qxa6 {[%clk 0:00:13.1]} 35... Rxa2 {[%clk 0:00:12.1]} 36. Qc6 {[%clk 0:00:11.8]}
36... fxg3 {[%clk 0:00:12.2]} 37. hxg3 {[%clk 0:00:11.3]} 37... Rb8 {[%clk
0:00:12.8]} 38. Bd5 {[%clk 0:00:10.5]} 38... Bxd5 {[%clk 0:00:12]} 39. Rxd5
{[%clk 0:00:09.6]} 39... Rb1+ {[%clk 0:00:11.4]} 40. Kg2 {[%clk 0:00:09.2]}
40... Rbb2 {[%clk 0:00:12.3]} 41. Rf5 {[%clk 0:00:08.5]} 41... Ra7 {[%clk
0:00:10.7]} 42. Qxh6 {[%clk 0:00:07.6]} 1-0

[Event "*** Titled Tuesday Blitz"]
[Site "Chess.com"]
[Date "2020.03.03"]
[Round "8"]
[White "ElGasanov"]
[Black "Fy_Rakotomaharo"]
[Result "1-0"]
[WhiteElo "2720"]
[BlackElo "2571"]
[TimeControl "180+1"]
[EndTime "14:35:22 PST"]
[Termination "ElGasanov won by resignation"]

1. d3 {[%clk 0:03:00.9]} 1... d5 {[%clk 0:02:57.4]} 2. g3 {[%clk 0:02:58.7]}
2... g6 {[%clk 0:02:57.8]} 3. Bg2 {[%clk 0:02:57]} 3... Bg7 {[%clk 0:02:58.2]}
4. f4 {[%clk 0:02:56.2]} 4... Nc6 {[%clk 0:02:41.2]} 5. Nc3 {[%clk 0:02:52.8]}
5... d4 {[%clk 0:02:38.2]} 6. Ne4 {[%clk 0:02:53.1]} 6... Nf6 {[%clk 0:02:37.9]}
7. Nf2 {[%clk 0:02:37.5]} 7... Nd5 {[%clk 0:02:34.5]} 8. Nf3 {[%clk 0:02:21.3]}
8... O-O {[%clk 0:02:02]} 9. O-O {[%clk 0:02:18.1]} 9... a5 {[%clk 0:01:45.2]}
10. Rb1 {[%clk 0:02:12.4]} 10... a4 {[%clk 0:01:43.7]} 11. a3 {[%clk 0:01:55.3]}
11... Re8 {[%clk 0:01:23.2]} 12. c4 {[%clk 0:01:12.4]} 12... dxc3 {[%clk
0:01:16.4]} 13. e4 {[%clk 0:01:13]} 13... cxb2 {[%clk 0:01:16.8]} 14. Bd2 {[%clk
0:01:09.6]} 14... Nc3 {[%clk 0:01:14.1]} 15. Bxc3 {[%clk 0:01:08.9]} 15... Bxc3
{[%clk 0:01:15]} 16. Qc2 {[%clk 0:01:02.8]} 16... Nd4 {[%clk 0:01:15.2]} 17.
Nxd4 {[%clk 0:00:58.9]} 17... Bxd4 {[%clk 0:01:13.9]} 18. e5 {[%clk 0:00:53.3]}
18... c6 {[%clk 0:01:04.9]} 19. Kh1 {[%clk 0:00:45.2]} 19... Be6 {[%clk
0:01:02.4]} 20. Ne4 {[%clk 0:00:43.7]} 20... Ba2 {[%clk 0:00:45.8]} 21. Rxb2
{[%clk 0:00:43.2]} 21... Bxb2 {[%clk 0:00:46.3]} 22. Qxb2 {[%clk 0:00:43.8]}
22... Bb3 {[%clk 0:00:45.4]} 23. Qc3 {[%clk 0:00:38.5]} 23... Qa5 {[%clk
0:00:42.9]} 24. Qc1 {[%clk 0:00:37]} 24... Red8 {[%clk 0:00:40]} 25. f5 {[%clk
0:00:36.7]} 25... Qxe5 {[%clk 0:00:36.9]} 26. f6 {[%clk 0:00:37.2]} 26... exf6
{[%clk 0:00:36]} 27. Nxf6+ {[%clk 0:00:30.4]} 27... Kg7 {[%clk 0:00:32.2]} 28.
Ng4 {[%clk 0:00:30.2]} 28... Qh5 {[%clk 0:00:14.8]} 29. Qc3+ {[%clk 0:00:30.7]}
29... Kf8 {[%clk 0:00:15.2]} 30. Nf6 {[%clk 0:00:27.6]} 30... Qa5 {[%clk
0:00:08.2]} 31. Nxh7+ {[%clk 0:00:26.3]} 31... Kg8 {[%clk 0:00:08.6]} 32. Nf6+
{[%clk 0:00:25.1]} 32... Kh8 {[%clk 0:00:08.8]} 33. Qc1 {[%clk 0:00:18.8]} 33...
Kg7 {[%clk 0:00:08.4]} 34. Ng4 {[%clk 0:00:16.7]} 34... Rh8 {[%clk 0:00:07.1]}
35. Qb2+ {[%clk 0:00:16.8]} 35... Kg8 {[%clk 0:00:06.6]} 36. Nf6+ {[%clk
0:00:16.7]} 36... Kf8 {[%clk 0:00:07.1]} 37. Nd5 {[%clk 0:00:16.6]} 37... Rh7
{[%clk 0:00:02.4]} 38. Nf6 {[%clk 0:00:15]} 38... Rh6 {[%clk 0:00:02.8]} 39. Ng4
{[%clk 0:00:14.6]} 39... Rh7 {[%clk 0:00:03.3]} 40. Ne5 {[%clk 0:00:13.9]} 40...
Kg8 {[%clk 0:00:01.5]} 41. Nd7 {[%clk 0:00:13.9]} 41... Be6 {[%clk 0:00:01.2]}
42. Nf6+ {[%clk 0:00:14]} 42... Kh8 {[%clk 0:00:02.1]} 43. Ne8+ {[%clk
0:00:10.6]} 43... Kg8 {[%clk 0:00:02.2]} 44. Nf6+ {[%clk 0:00:10.7]} 44... Kh8
{[%clk 0:00:02.7]} 45. Nxh7+ {[%clk 0:00:10.9]} 45... Kxh7 {[%clk 0:00:03.6]}
46. Rf4 {[%clk 0:00:10.7]} 46... Bd5 {[%clk 0:00:03.9]} 47. Rh4+ {[%clk
0:00:10.1]} 1-0

[Event "*** Titled Tuesday Blitz"]
[Site "Chess.com"]
[Date "2020.03.03"]
[Round "8"]
[White "Mikasinski"]
[Black "MaxLeto"]
[Result "1-0"]
[WhiteElo "2280"]
[BlackElo "2387"]
[TimeControl "180+1"]
[EndTime "14:35:26 PST"]
[Termination "Mikasinski won by resignation"]

1. e4 {[%clk 0:03:00.9]} 1... c5 {[%clk 0:03:00]} 2. Nf3 {[%clk 0:03:00.5]} 2...
d6 {[%clk 0:03:00.5]} 3. d4 {[%clk 0:03:00.4]} 3... cxd4 {[%clk 0:03:01.4]} 4.
Nxd4 {[%clk 0:03:00.9]} 4... Nf6 {[%clk 0:03:01.7]} 5. Nc3 {[%clk 0:03:01.1]}
5... a6 {[%clk 0:03:01.6]} 6. Be2 {[%clk 0:03:01]} 6... e6 {[%clk 0:03:01.4]} 7.
g4 {[%clk 0:03:00.2]} 7... Be7 {[%clk 0:02:57.4]} 8. g5 {[%clk 0:02:59.8]} 8...
Nfd7 {[%clk 0:02:57.5]} 9. h4 {[%clk 0:03:00.2]} 9... b5 {[%clk 0:02:56.9]} 10.
a3 {[%clk 0:02:57.6]} 10... Bb7 {[%clk 0:02:50.4]} 11. Rg1 {[%clk 0:02:53.6]}
11... Nc6 {[%clk 0:02:44.2]} 12. Nxc6 {[%clk 0:02:44.8]} 12... Bxc6 {[%clk
0:02:45.1]} 13. Be3 {[%clk 0:02:42.7]} 13... Qc7 {[%clk 0:02:32.4]} 14. Qd2
{[%clk 0:02:40.2]} 14... Qb7 {[%clk 0:02:13.8]} 15. f3 {[%clk 0:02:25.3]} 15...
a5 {[%clk 0:02:09.7]} 16. Bd4 {[%clk 0:02:07]} 16... O-O {[%clk 0:02:03.5]} 17.
Kf2 {[%clk 0:01:59.7]} 17... b4 {[%clk 0:01:58.3]} 18. axb4 {[%clk 0:01:57.5]}
18... axb4 {[%clk 0:01:59.2]} 19. Na2 {[%clk 0:01:46]} 19... e5 {[%clk
0:01:54.5]} 20. Be3 {[%clk 0:01:42.3]} 20... d5 {[%clk 0:01:54.6]} 21. exd5
{[%clk 0:01:39.4]} 21... Bxd5 {[%clk 0:01:54.5]} 22. c4 {[%clk 0:01:31.3]} 22...
Bc6 {[%clk 0:01:39.6]} 23. b3 {[%clk 0:01:22.2]} 23... Nc5 {[%clk 0:01:32.4]}
24. Qb2 {[%clk 0:01:18.4]} 24... Ra3 {[%clk 0:01:20.5]} 25. Nc1 {[%clk
0:01:14.5]} 25... Re8 {[%clk 0:00:30.8]} 26. Qxe5 {[%clk 0:01:02.2]} 26... Bf6
{[%clk 0:00:18.3]} 27. Qxc5 {[%clk 0:00:57.5]} 27... Bxa1 {[%clk 0:00:18.3]} 28.
Nd3 {[%clk 0:00:53.5]} 28... Bc3 {[%clk 0:00:15.3]} 29. Rb1 {[%clk 0:00:38.3]}
29... Ra2 {[%clk 0:00:14.9]} 30. Nc1 {[%clk 0:00:38.3]} 30... Rc2 {[%clk
0:00:06.5]} 31. Qf5 {[%clk 0:00:34.6]} 31... Rb2 {[%clk 0:00:02.8]} 32. Rxb2
{[%clk 0:00:33]} 32... Bxb2 {[%clk 0:00:03.7]} 33. Nd3 {[%clk 0:00:33.4]} 33...
Bc3 {[%clk 0:00:03.5]} 34. h5 {[%clk 0:00:27.1]} 34... Qe7 {[%clk 0:00:03]} 35.
Qf4 {[%clk 0:00:18.7]} 35... g6 {[%clk 0:00:03.3]} 36. h6 {[%clk 0:00:16.5]}
36... Bd2 {[%clk 0:00:02.9]} 37. Bxd2 {[%clk 0:00:08.4]} 37... Qxe2+ {[%clk
0:00:03.8]} 38. Kg3 {[%clk 0:00:08.5]} 38... Qe7 {[%clk 0:00:02.6]} 39. Bxb4
{[%clk 0:00:06.7]} 39... Qd7 {[%clk 0:00:01.7]} 40. Qf6 {[%clk 0:00:05.1]} 40...
Qc7+ {[%clk 0:00:01.3]} 41. Bd6 {[%clk 0:00:04.7]} 41... Qxd6+ {[%clk
0:00:01.1]} 1-0